bitfinex-derivatives/quotes_SOLF0:USTF0_20250227
["timestamp","ask_amount","ask_price","bid_price","bid_amount"]
[1740690877196,12.62,136.82,136.65,201.02064582]
[1740690877396,12.62,136.82,136.66,4.7402725]
[1740690877594,12.62,136.82,136.67,4.7402725]
[1740690877797,12.62,136.82,136.72,7.3223]
[1740690877992,7.36883578,136.76,136.73,0.04683742]
[1740690878195,12.62,136.82,136.7,4.7402725]
[1740690878401,0.05357508,136.76,136.74,7.3214]
[1740690878595,7.3201,136.78,136.74,7.3214]
[1740690878899,0.0507439,136.76,136.74,7.36969146]
[1740690879101,0.0507439,136.76,136.74,0.04829146]
[1740690879302,0.0507439,136.76,136.75,7.3212]
[1740690879697,0.0507439,136.76,136.74,0.04829146]
[1740690880203,0.0507439,136.76,136.74,7.36979146]
[1740690882304,0.0507439,136.76,136.74,0.04829146]
[1740690882702,0.0507439,136.76,136.74,4.78856396]
[1740690882895,0.0507439,136.76,136.74,0.04829146]
[1740690883095,0.0507439,136.76,136.74,7.36949146]
[1740690883501,0.0507439,136.76,136.74,12.10976396]
[1740690883701,0.0507439,136.76,136.74,7.36949146]
[1740690883908,0.0507439,136.76,136.71,4.74964737]
[1740690884206,0.0507439,136.76,136.72,4.74964737]
[1740690884407,7.3227,136.73,136.68,190.88886756]
[1740690884605,7.3227,136.73,136.69,4.75289721]
[1740690884906,3.8264,136.75,136.66,7.3258]
[1740690885107,0.05456797,136.72,136.7,0.04758407]
[1740690885309,0.05456797,136.72,136.66,7.3258]
[1740690885507,7.3241,136.7,136.66,7.3258]
[1740690885709,0.05456797,136.72,136.64,190.88886756]
[1740690885898,3.8264,136.75,136.63,77.28486615]
[1740690886103,25.8664,136.75,136.62,10.13177826]
[1740690886499,0.05328639,136.7,136.67,0.05618831]
[1740690886799,0.05328639,136.7,136.62,10.13177826]
[1740690887001,0.05328639,136.7,136.66,7.326]
[1740690887804,0.05328639,136.7,136.67,0.05571362]
[1740690888005,3.8264,136.75,136.59,0.0951]
[1740690888204,0.04741523,136.7,136.67,0.04976949]
[1740690888610,0.04741523,136.7,136.69,7.324]
[1740690889008,0.04741523,136.7,136.67,0.04976949]
[1740690889807,0.04741523,136.7,136.69,7.3244]
[1740690890501,109.45558482,136.86,136.69,212.82886756]
[1740690890701,109.45558482,136.86,136.7,2.7795712]
[1740690891006,27.89528482,136.86,136.85,7.3158]
[1740690891210,5.7876,136.98,136.85,12.62]
[1740690891412,5.7876,136.98,136.85,34.54]
[1740690891609,33.62936254,136.98,136.86,0.049992]
[1740690891805,0.04807851,136.93,136.85,12.62]
[1740690892006,121.22325359,136.89,136.85,12.62]
[1740690892307,121.22325359,136.89,136.88,0.05464647]
[1740690892506,121.22325359,136.89,136.88,7.92703892]
[1740690892708,121.22325359,136.89,136.88,31.67517564]
[1740690893408,121.22325359,136.89,136.88,9.75517564]
[1740690894613,0.05470693,136.9,136.88,73.24540242]
[1740690894913,0.05470693,136.9,136.89,9.70052917]
[1740690895710,27.89646947,136.9,136.89,1.82813672]
[1740690896013,0.05470693,136.9,136.89,9.64252681]
[1740690896312,0.05470693,136.9,136.89,73.13275359]
[1740690896507,0.05470693,136.9,136.89,73.1250545]
[1740690896909,0.05470693,136.9,136.89,78.00402826]
[1740690898106,0.05470693,136.9,136.89,149.52871191]
[1740690898305,30.83884508,136.99,136.89,149.52871191]
[1740690898511,7.309,136.98,136.9,6.70030556]
[1740690898711,7.309,136.98,136.91,6.70030556]
[1740690898911,7.309,136.98,136.92,1.82834216]
[1740690898912,13.30330809,136.98,136.92,1.82834216]
[1740690899211,13.30330809,136.98,136.91,6.70030556]
[1740690899410,0.05194917,136.96,136.94,0.04905885]
[1740690899612,0.05194917,136.96,136.91,6.70030556]
[1740690899911,13.35525726,136.96,136.95,119.25085096]
[1740690900108,7.3079,137.0,136.95,116.19215096]
[1740690900304,12.62,137.06,136.95,116.19215096]
[1740690900616,56.56,137.06,136.95,116.19215096]
[1740690900909,12.62,137.06,136.95,116.19215096]
[1740690901111,12.62,137.06,136.95,142.96888391]
[1740690901305,0.0512995,137.02,136.99,0.05259188]
[1740690901507,0.0512995,137.02,136.95,142.96888391]
[1740690901708,21.9512995,137.02,136.95,142.96888391]
[1740690902313,0.0512995,137.02,136.95,142.96888391]
[1740690902710,0.0512995,137.02,136.97,0.04686748]
[1740690903217,43.9912995,137.02,136.97,0.04686748]
[1740690903417,1.8405,137.01,136.97,0.04686748]
[1740690903717,1.8405,137.01,136.96,8.72902976]
[1740690904715,45.7805,137.01,136.97,8.72902976]
[1740690904915,45.7805,137.01,136.97,1.6275815]
[1740690905116,7.3089,136.98,136.97,1.6275815]
[1740690905516,0.05057229,136.99,136.97,1.6275815]
[1740690906318,7.35927229,136.99,136.97,1.6275815]
[1740690906520,0.05057229,136.99,136.97,1.6275815]
[1740690907022,7.35897229,136.99,136.97,1.6275815]
[1740690907319,0.05057229,136.99,136.97,0.05395174]
[1740690910718,0.05057229,136.99,136.98,1.82770514]
[1740690911021,1.9551,137.04,136.98,1.82770514]
[1740690911218,1.9551,137.04,136.99,1.82760984]
[1740690911522,1.9551,137.04,136.98,1.82760984]
[1740690911723,1.9551,137.04,136.96,2.001]
[1740690911923,1.9551,137.04,136.97,1.82761924]
[1740690912124,1.9551,137.04,136.96,2.001]
[1740690912318,1.9551,137.04,136.99,0.05347438]
[1740690912319,7.3073,137.01,136.99,0.05347438]
[1740690912517,0.04813709,137.02,136.99,0.05347438]
[1740690912721,1.9551,137.04,136.99,0.05347438]
[1740690912921,7.3074,137.01,136.99,0.05347438]
[1740690913824,7.3064,137.03,136.99,0.05347438]
[1740690914016,0.05231992,137.01,136.99,0.05347438]
[1740690914922,0.05231992,137.01,136.99,1.88119166]
[1740690915128,0.05231992,137.01,136.99,0.05347438]
[1740690915432,0.05231992,137.01,136.99,1.88119166]
[1740690915619,0.05231992,137.01,136.99,0.05347438]
[1740690915817,7.3078,137.0,136.99,0.05347438]
[1740690916019,1.9551,137.04,136.99,0.05347438]
[1740690916424,1.8735,137.09,136.99,0.05347438]
[1740690916629,1.8735,137.09,137.0,1.82758298]
[1740690916824,1.8735,137.09,137.01,1.82758298]
[1740690917123,2.0261,137.1,137.01,1.82758298]
[1740690917124,0.05104697,137.06,137.03,0.05156522]
[1740690917328,2.0261,137.1,137.04,1.82758298]
[1740690917524,2.0261,137.1,137.05,1.82758298]
[1740690917829,2.0261,137.1,137.04,1.82758298]
[1740690918024,1.9533,137.16,137.05,1.82758298]
[1740690918232,1.9533,137.16,137.04,1.82758298]
[1740690918433,1.9533,137.16,137.05,1.82758298]
[1740690918633,14.5926,137.22,137.08,0.05068991]
[1740690918932,1.9345,137.2,137.04,3.823]
[1740690919127,1.9345,137.2,137.13,0.05299352]
[1740690920529,1.9716,137.21,137.13,0.05299352]
[1740690921432,7.2991,137.17,137.13,0.05299352]
[1740690921922,1.9716,137.21,137.13,0.05299352]
[1740690921923,7.2984,137.18,137.13,0.05299352]
[1740690922626,7.2984,137.18,137.13,7.35349352]
[1740690923126,1.9345,137.24,137.13,0.05299352]
[1740690923327,1.9345,137.24,137.14,7.3003]
[1740690923527,7.2968,137.21,137.17,0.05510237]
[1740690923824,1.9345,137.24,137.17,0.05510237]
[1740690924531,7.2957,137.23,137.17,7.35380237]
[1740690924925,1.9345,137.24,137.17,0.05510237]
[1740690925130,7.2962,137.22,137.17,0.05510237]
[1740690925627,7.2957,137.23,137.18,7.2982]
[1740690925833,1.9345,137.24,137.18,1.9808]
[1740690926029,1.9345,137.24,137.18,75.46738559]
[1740690926332,12.58,137.31,137.18,75.46738559]
[1740690926537,1.34143878,137.3,137.18,75.46738559]
[1740690926927,1.34143878,137.3,137.23,0.05449564]
[1740690927437,198.6405,137.34,137.23,0.05449564]
[1740690927438,12.56,137.32,137.23,0.05449564]
[1740690927833,12.56,137.32,137.21,39.7955506]
[1740690928133,12.56,137.32,137.26,0.04805135]
[1740690928327,14.5731,137.41,137.26,0.04805135]
[1740690928527,0.0989,137.39,137.26,0.04805135]
[1740690928735,0.0989,137.39,137.25,7.2943]
[1740690928931,0.0989,137.39,137.31,0.05135424]
[1740690929433,12.56,137.44,137.31,7.34265424]
[1740690929632,12.56,137.44,137.31,0.05135424]
[1740690929828,12.56,137.44,137.27,1.82427027]
[1740690930034,12.56,137.44,137.36,0.04854377]
[1740690930231,0.0989,137.47,137.36,0.04854377]
[1740690930432,0.0989,137.47,137.3,12.56]
[1740690930632,7.286,137.41,137.4,1.565e-05]
[1740690930834,0.04963233,137.4,137.26,3.71667027]
[1740690931129,0.0951,137.4,137.27,9.11757027]
[1740690931347,0.0951,137.4,137.26,3.71667027]
[1740690931637,3.9722,137.4,137.26,3.71667027]
[1740690932037,0.05443707,137.34,137.32,0.05083613]
[1740690932236,0.05443707,137.34,137.26,1.8924]
[1740690932431,7.2896,137.35,137.26,1.8924]
[1740690932638,3.9722,137.4,137.26,1.8924]
[1740690933337,0.05019646,137.34,137.32,0.04990562]
[1740690933533,0.05019646,137.34,137.24,1.82427027]
[1740690933735,34.6,137.34,137.23,39.7955506]
[1740690934134,12.56,137.34,137.23,39.7955506]
[1740690934333,12.56,137.34,137.24,9.11861191]
[1740690934538,12.56,137.34,137.23,39.7955506]
[1740690934737,0.04901771,137.3,137.28,0.05324237]
[1740690935737,198.34,137.37,137.28,0.05324237]
[1740690936131,7.2902,137.34,137.27,7.2934]
[1740690936529,7.2897,137.34,137.27,9.11747831]
[1740690936729,7.2897,137.34,137.27,7.2934]
[1740690937130,0.04964162,137.32,137.29,0.05282197]
[1740690937931,7.2919,137.3,137.29,0.05282197]
[1740690938135,0.04964162,137.32,137.21,3.82413633]
[1740690938335,12.56,137.35,137.21,2.0003]
[1740690938536,12.56,137.35,137.21,19.24568765]
[1740690938942,7.294,137.27,137.21,19.24568765]
[1740690939141,12.56,137.35,137.21,19.24568765]
[1740690939347,0.04723802,137.25,137.23,0.05052197]
[1740690939639,6.63444545,137.34,137.23,0.050994]
[1740690939839,1.34109585,137.33,137.23,0.050994]
[1740690940035,7.2951,137.24,137.21,9.94888765]
[1740690940237,1.9913,137.32,137.21,9.94888765]
[1740690940441,1.9913,137.32,137.16,39.7955506]
[1740690940643,1.9913,137.32,137.17,9.12320061]
[1740690940942,0.05404465,137.25,137.23,0.05101663]
[1740690941242,1.9913,137.32,137.17,1.82470061]
[1740690941243,7.2951,137.24,137.17,1.82470061]
[1740690941441,7.2951,137.24,137.23,0.05047108]
[1740690941641,7.2951,137.24,137.17,1.82470061]
[1740690941841,7.2957,137.23,137.22,0.05047272]
[1740690942234,83.5431,137.32,137.17,8.08596719]
[1740690942437,7.2966,137.22,137.21,0.05555718]
[1740690942635,1.94286181,137.24,137.17,6.26126658]
[1740690942835,1.8969,137.24,137.17,6.26126658]
[1740690943241,1.9946,137.23,137.17,6.26126658]
[1740690943638,1.9946,137.23,137.19,0.04635296]
[1740690943839,0.04811909,137.21,137.19,0.04635296]
[1740690946138,12.56,137.27,137.19,0.04635296]
[1740690946334,1.9946,137.28,137.19,0.04635296]
[1740690946536,205.6283,137.37,137.29,7.2919]
[1740690946733,58.69012233,137.5,137.25,12.56]
[1740690946734,1.9318,137.36,137.25,12.56]
[1740690946939,1.9318,137.36,137.26,1.82510646]
[1740690947136,103.5918,137.48,137.27,1.82510646]
[1740690947340,0.0977,137.47,137.3,0.04681137]
[1740690947537,0.04660646,137.32,137.31,1.82510646]
[1740690947740,2.0994,137.47,137.31,1.82510646]
[1740690947938,1.75e-05,137.33,137.32,1.82510646]
[1740690948141,9.3823,137.47,137.37,7.2878]
[1740690948344,2.0994,137.47,137.33,1.82510646]
[1740690948550,2.0994,137.47,137.34,1.82510646]
[1740690949152,0.04956493,137.42,137.39,0.05583887]
[1740690950349,0.04956493,137.42,137.41,7.286]
[1740690950650,1.9318,137.48,137.39,0.05583887]
[1740690950947,1.9318,137.48,137.4,7.2862]
[1740690951148,1.9318,137.48,137.37,7.99585993]
[1740690951343,1.9318,137.48,137.38,1.82510646]
[1740690951647,1.9318,137.48,137.36,6.17075347]
[1740690951848,1.9318,137.48,137.42,0.05569268]
[1740690952149,7.283,137.47,137.38,7.2875]
[1740690952349,7.283,137.47,137.44,0.05090402]
[1740690952545,1.9318,137.48,137.37,1.82510646]
[1740690952746,1.9318,137.48,137.44,0.05233962]
[1740690952946,1.9318,137.48,137.37,1.82510646]
[1740690953147,1.9318,137.48,137.45,0.04838359]
[1740690953343,7.2833,137.47,137.45,0.05370235]
[1740690953549,1.9318,137.48,137.37,6.17075347]
[1740690953741,1.9318,137.48,137.36,1.82510646]
[1740690953946,1.33966746,137.47,137.35,6.17075347]
[1740690954249,1.33966746,137.47,137.32,1.82510646]
[1740690954250,35.91986678,137.46,137.34,16.11964112]
[1740690954448,7.2859,137.42,137.34,9.94888765]
[1740690954646,34.58,137.46,137.34,9.94888765]
[1740690954842,0.04699794,137.39,137.37,0.05236646]
[1740690955245,1.33997596,137.43,137.34,9.94888765]
[1740690955450,0.04811614,137.39,137.37,0.05039809]
[1740690955751,7.2892,137.35,137.34,0.78848574]
[1740690955948,12.54,137.39,137.33,29.84666295]
[1740690956450,7.2897,137.34,137.33,29.84666295]
[1740690956847,0.04664944,137.35,137.32,29.89464504]
[1740690957052,7.2902,137.34,137.32,29.89464504]
[1740690957252,0.04664944,137.35,137.32,29.89464504]
[1740690957651,7.2903,137.33,137.32,29.89464504]
[1740690958452,7.2908,137.32,137.31,71.35113905]
[1740690958646,0.04664944,137.35,137.31,71.35113905]
[1740690959048,7.2898,137.34,137.31,71.35113905]
[1740690959449,0.04664944,137.35,137.31,0.04834308]
[1740690959653,7.2898,137.34,137.31,0.04834308]
[1740690959956,0.04664944,137.35,137.31,0.04834308]
[1740690961248,7.2908,137.32,137.31,0.04834308]
[1740690961650,0.04664944,137.35,137.31,0.04834308]
[1740690962354,7.2908,137.33,137.31,0.04834308]
[1740690962548,0.04664944,137.35,137.31,0.04834308]
[1740690962747,0.04664944,137.35,137.32,1.82386104]
[1740690962946,0.04664944,137.35,137.31,0.04834308]
[1740690963148,0.04664944,137.35,137.32,1.82383184]
[1740690963345,0.04664944,137.35,137.33,9.62717777]
[1740690963551,0.04664944,137.35,137.34,15.97901121]
[1740690964357,0.04664944,137.35,137.34,8.17566528]
[1740690964554,0.04664944,137.35,137.34,15.97747518]
[1740690965555,0.04664944,137.35,137.34,23.26717518]
[1740690965756,0.04664944,137.35,137.34,15.97747518]
[1740690966156,0.04664944,137.35,137.34,6.35183344]
[1740690966553,0.04664944,137.35,137.31,0.04834308]
[1740690966757,0.04664944,137.35,137.32,1.82359592]
[1740690966953,0.04664944,137.35,137.33,1.82359592]
[1740690967149,0.04664944,137.35,137.34,1.82359592]
[1740690967856,0.04664944,137.35,137.34,8.18198928]
[1740690968254,0.04664944,137.35,137.34,15.99142655]
[1740690969055,198.18,137.43,137.34,15.99142655]
[1740690969362,198.18,137.43,137.35,9.63237777]
[1740690969553,198.18,137.43,137.36,9.63237777]
[1740690969750,198.18,137.43,137.37,9.63092232]
[1740690969955,198.18,137.43,137.38,8.18198928]
[1740690970152,0.05345031,137.41,137.39,1.87423598]
[1740690970348,0.05345031,137.41,137.39,0.05064006]
[1740690970861,7.2866,137.4,137.39,0.05064006]
[1740690971251,7.2866,137.4,137.39,4.006e-05]
[1740690971452,7.2888,137.36,137.34,1.823157]
[1740690971755,7.2888,137.36,137.35,1.823157]
[1740690972056,7.2892,137.35,137.34,6.36688376]
[1740690972455,12.54,137.38,137.29,7.82420981]
[1740690972754,0.05395097,137.36,137.3,7.82420981]
[1740690972952,0.05395097,137.36,137.32,0.04748553]
[1740690973155,7.2903,137.33,137.32,0.04748553]
[1740690973352,0.05215752,137.35,137.32,0.04748553]
[1740690973749,7.2903,137.33,137.32,0.04748553]
[1740690973954,7.2903,137.33,137.32,8.553e-05]
[1740690976355,0.05215752,137.35,137.32,8.553e-05]
[1740690976951,1.34017977,137.42,137.32,8.553e-05]
[1740690977154,1.34017977,137.42,137.3,1.8437]
[1740690977556,7.2862,137.41,137.34,7.2896]
[1740690977758,210.72,137.43,137.31,7.82125933]
[1740690977958,1.34007142,137.42,137.36,0.04611581]
[1740690978159,210.72,137.43,137.36,0.04611581]
[1740690978357,0.05312944,137.4,137.36,0.04611581]
[1740690979164,7.33972944,137.4,137.36,0.04611581]
[1740690979662,0.05312944,137.4,137.36,0.04611581]
[1740690980953,0.05312944,137.4,137.36,7.33451581]
[1740690981157,0.05312944,137.4,137.36,0.04611581]
[1740690981865,198.18,137.43,137.36,0.04611581]
[1740690982061,0.65400064,137.48,137.36,0.04611581]
[1740690982365,7.2845,137.44,137.35,7.82125933]
[1740690982566,7.2845,137.44,137.36,7.82125933]
[1740690982764,7.2845,137.44,137.37,1.8898]
[1740690983058,0.05389071,137.41,137.39,0.04691307]
[1740690983254,71.23613617,137.5,137.39,0.04691307]
[1740690983459,1.3394093,137.49,137.37,1.8898]
[1740690983655,7.2844,137.45,137.4,7.2863]
[1740690984259,71.23613617,137.5,137.39,1.82232428]
[1740690984570,0.04974323,137.44,137.41,0.04590857]
[1740690984757,1.33960371,137.49,137.37,1.8898]
[1740690985062,198.16,137.51,137.41,0.04972478]
[1740690985063,0.04594416,137.44,137.41,0.04972478]
[1740690985266,1.33931899,137.5,137.39,1.82242341]
[1740690985461,198.16,137.51,137.4,1.82242341]
[1740690985662,198.16,137.51,137.38,9.63688464]
[1740690985867,198.16,137.51,137.39,1.82242341]
[1740690986163,198.16,137.51,137.4,1.82242341]
[1740690986363,7.282,137.49,137.44,7.33753201]
[1740690986567,198.16,137.51,137.44,0.05353201]
[1740690987061,198.16,137.51,137.45,7.2836]
[1740690987062,7.2818,137.49,137.45,7.2836]
[1740690987265,7.2818,137.49,137.44,0.05353201]
[1740690987463,198.16,137.51,137.44,0.05353201]
[1740690987967,7.2827,137.48,137.44,0.05353201]
[1740690988158,198.16,137.51,137.44,0.05353201]
[1740690988466,7.2837,137.46,137.44,0.05353201]
[1740690988664,198.16,137.51,137.44,0.05353201]
[1740690989566,7.2816,137.5,137.44,7.33763201]
[1740690989764,198.16,137.51,137.44,0.05353201]
[1740690990673,7.2827,137.48,137.44,0.05353201]
[1740690990963,198.16,137.51,137.45,1.82170992]
[1740690991169,14.6594,137.57,137.46,7.2832]
[1740690991363,14.6594,137.57,137.47,1.82143202]
[1740690991364,1.33875276,137.56,137.47,1.82143202]
[1740690991564,1.33875276,137.56,137.5,0.04843145]
[1740690992169,7.2807,137.51,137.5,0.04843145]
[1740690993167,7.2804,137.52,137.5,0.04843145]
[1740690994068,198.04,137.59,137.5,0.04843145]
[1740690994271,15.20414249,137.62,137.48,1.9228]
[1740690994272,1.33863436,137.58,137.48,1.9228]
[1740690994572,7.278,137.57,137.53,0.05470412]
[1740690994777,0.65334249,137.62,137.53,0.05470412]
[1740690994972,7.2771,137.58,137.53,7.2794]
[1740690995182,7.74627951,137.66,137.5,1.8511]
[1740690995183,12.673,137.66,137.56,0.04723329]
[1740690995473,1.33828012,137.65,137.51,1.82078992]
[1740690995668,1.33828012,137.65,137.6,0.05224434]
[1740690995871,1.33828012,137.65,137.53,1.82075777]
[1740690996169,1.33828012,137.65,137.52,12.52]
[1740690996373,1.33828012,137.67,137.53,9.61135365]
[1740690996571,120.35246955,137.68,137.54,9.61084067]
[1740690996778,120.35246955,137.68,137.55,13.45724067]
[1740690997073,7.2732,137.66,137.6,0.04771752]
[1740690997274,120.35246955,137.68,137.6,0.04771752]
[1740690997477,120.35246955,137.68,137.6,3.89611419]
[1740690997674,7.2738,137.65,137.61,7.79089342]
[1740690997868,120.35246955,137.68,137.62,7.79089342]
[1740690998173,120.35246955,137.68,137.64,0.05328565]
[1740690998378,12.52,137.74,137.64,0.05328565]
[1740690998572,1.33695238,137.73,137.64,0.05328565]
[1740690998773,1.33695238,137.73,137.6,2.0289]
[1740690998977,23.11695238,137.73,137.67,7.49e-06]
[1740690999278,1.33695238,137.72,137.57,1.8961]
[1740690999473,15.87735238,137.71,137.54,10.12256423]
[1740690999673,7.2781,137.56,137.54,2.0289]
[1740690999879,12.52,137.65,137.54,2.0289]
[1740691000072,0.04686465,137.56,137.54,2.07955807]
[1740691000270,1.33791248,137.64,137.54,2.0289]
[1740691000568,1.33791248,137.64,137.54,2.08445718]
[1740691000569,0.05155387,137.56,137.54,2.08445718]
[1740691000767,1.33791248,137.64,137.54,2.0289]
[1740691000973,7.278,137.57,137.54,2.0289]
[1740691001881,0.02075694,137.57,137.54,0.05206868]
[1740691002282,7.2786,137.55,137.54,0.05206868]
[1740691002977,7.2786,137.55,137.54,6.868e-05]
[1740691005280,29.0986,137.55,137.54,6.868e-05]
[1740691006083,51.1386,137.55,137.54,6.868e-05]
[1740691006385,29.0986,137.55,137.54,6.868e-05]
[1740691008584,7.2786,137.55,137.54,6.868e-05]
[1740691009078,29.0986,137.55,137.54,6.868e-05]
[1740691009281,7.2786,137.55,137.54,6.868e-05]
[1740691009584,29.0986,137.55,137.54,6.868e-05]
[1740691011287,7.2786,137.55,137.54,6.868e-05]
[1740691011485,29.0986,137.55,137.54,6.868e-05]
[1740691011684,29.0986,137.55,137.41,3.8652]
[1740691011685,7.2843,137.45,137.41,3.8652]
[1740691011879,12.52,137.5,137.41,3.8652]
[1740691012285,7.2848,137.44,137.41,3.8652]
[1740691012689,7.33945067,137.44,137.41,3.91656216]
[1740691013080,0.05465067,137.44,137.41,3.91656216]
[1740691013486,0.05465067,137.44,137.41,0.05136216]
[1740691013682,7.2851,137.43,137.41,0.05136216]
[1740691014086,0.05465067,137.44,137.41,0.05136216]
[1740691014488,7.2855,137.42,137.41,0.05136216]
[1740691014783,0.05465067,137.44,137.41,0.05136216]
[1740691014988,7.33935067,137.44,137.41,0.05136216]
[1740691015188,0.05465067,137.44,137.41,0.05136216]
[1740691018487,7.33925067,137.44,137.41,0.05136216]
[1740691018891,0.05465067,137.44,137.41,0.05136216]
[1740691019092,7.2855,137.42,137.41,0.05136216]
[1740691019493,0.05465067,137.44,137.41,0.05136216]
[1740691020305,0.05465067,137.44,137.42,5.09969246]
[1740691020501,0.05465067,137.44,137.41,7.33706216]
[1740691020799,0.05465067,137.44,137.42,5.10055124]
[1740691021001,197.94,137.53,137.43,5.10055124]
[1740691021299,1.33907318,137.52,137.44,11.87095373]
[1740691021504,0.1563,137.6,137.49,7.2815]
[1740691021803,1.3385917,137.59,137.49,7.2815]
[1740691022004,7.2777,137.57,137.5,7.2812]
[1740691022205,7.2777,137.57,137.53,0.05512305]
[1740691022401,7.2769,137.59,137.53,0.05512305]
[1740691022602,210.614,137.61,137.53,0.05512305]
[1740691022603,198.0,137.61,137.53,0.05512305]
[1740691023099,198.0,137.61,137.55,7.2785]
[1740691023304,12.52,137.65,137.56,1.972]
[1740691023496,1.33809398,137.64,137.57,0.05096779]
[1740691024305,12.52,137.65,137.58,9.95535861]
[1740691024600,0.0958,137.68,137.59,9.95535861]
[1740691024806,7.2735,137.65,137.6,0.05426465]
[1740691025106,0.1563,137.69,137.6,0.05426465]
[1740691025301,198.0,137.7,137.6,0.05426465]
[1740691025302,7.2724,137.67,137.6,0.05426465]
[1740691025501,7.2724,137.67,137.57,6.23210831]
[1740691025502,7.2724,137.67,137.59,1.8197383]
[1740691025697,7.2724,137.67,137.62,0.049457]
[1740691026605,7.2719,137.68,137.62,0.049457]
[1740691026901,198.0,137.7,137.62,0.049457]
[1740691027101,7.2723,137.67,137.62,0.049457]
[1740691027504,198.0,137.7,137.62,0.049457]
[1740691027710,1.33741344,137.69,137.62,0.049457]
[1740691027904,198.0,137.7,137.62,0.049457]
[1740691028910,58.60047026,137.73,137.63,9.93442494]
[1740691029106,58.60047026,137.73,137.64,8.11539263]
[1740691029411,7.2714,137.69,137.67,0.05248935]
[1740691029613,58.60047026,137.73,137.67,0.05248935]
[1740691030204,12.52,137.75,137.67,0.05248935]
[1740691030812,1.33689701,137.74,137.67,0.05248935]
[1740691031110,1.33689701,137.73,137.64,1.8808]
[1740691031312,1.33689701,137.73,137.69,0.05498586]
[1740691032209,12.52,137.77,137.69,0.05498586]
[1740691032409,1.33690553,137.76,137.69,0.05498586]
[1740691032606,7.2721,137.68,137.64,9.97991584]
[1740691032809,12.52,137.77,137.65,0.05358853]
[1740691033117,23.37688665,137.76,137.64,3.69965473]
[1740691033315,23.37688665,137.75,137.7,0.05477589]
[1740691033510,1.33688665,137.74,137.57,7.04361318]
[1740691033711,7.2759,137.61,137.55,7.04361318]
[1740691033907,12.52,137.65,137.54,1.81953966]
[1740691034214,12.52,137.65,137.55,1.81997064]
[1740691034411,34.56,137.65,137.54,1.81997064]
[1740691034617,0.04607066,137.61,137.59,0.05016157]
[1740691036211,197.78,137.67,137.59,0.05016157]
[1740691036415,197.78,137.76,137.59,0.05016157]
[1740691036612,7.2711,137.7,137.61,7.2752]
[1740691036914,7.2711,137.7,137.62,5.86047728]
[1740691037113,12.5,137.75,137.62,4.0405]
[1740691037314,12.5,137.75,137.63,1.81997728]
[1740691037514,0.02688018,137.69,137.67,0.05151559]
[1740691037717,7.2688,137.74,137.67,0.05151559]
[1740691037913,197.78,137.76,137.67,0.05151559]
[1740691038118,0.02688018,137.69,137.65,1.81997728]
[1740691038421,7.2695,137.73,137.63,1.81997728]
[1740691038617,0.02688018,137.68,137.64,1.81997728]
[1740691038816,197.78,137.76,137.66,0.05117244]
[1740691039121,197.78,137.76,137.66,1.81997728]
[1740691039320,197.78,137.76,137.63,1.81997728]
[1740691039523,197.78,137.76,137.65,7.2732]
[1740691039716,197.78,137.76,137.65,1.81997728]
[1740691039916,7.2692,137.73,137.69,0.04919898]
[1740691040115,197.78,137.76,137.69,0.04919898]
[1740691041616,7.2686,137.74,137.69,0.04919898]
[1740691041921,197.78,137.76,137.69,0.04919898]
[1740691042522,7.2686,137.74,137.69,0.04919898]
[1740691042722,197.78,137.76,137.69,0.04919898]
[1740691043623,7.2707,137.7,137.69,0.04919898]
[1740691044420,197.78,137.76,137.69,0.04919898]
[1740691044820,219.62,137.76,137.69,0.04919898]
[1740691045121,7.2707,137.7,137.69,0.04919898]
[1740691046718,7.2704,137.71,137.69,0.04919898]
[1740691046917,197.78,137.76,137.69,0.04919898]
[1740691047115,7.2698,137.72,137.69,0.04919898]
[1740691048425,197.78,137.76,137.69,0.04919898]
[1740691048626,7.2689,137.74,137.69,0.04919898]
[1740691048826,197.78,137.76,137.7,7.2706]
[1740691049026,7.2656,137.8,137.69,0.04919898]
[1740691049324,256.25505026,137.84,137.64,22.1731224]
[1740691049624,7.2608,137.89,137.73,0.05074208]
[1740691049819,219.52,137.95,137.74,12.5]
[1740691050027,1.33538166,137.94,137.74,14.31853355]
[1740691050221,7.261,137.89,137.83,0.05247869]
[1740691050428,197.7702,137.95,137.83,0.05247869]
[1740691050723,7.2596,137.91,137.81,12.5]
[1740691050926,0.0902,137.95,137.88,0.04754761]